fUST/lending_fUST_20250627
["ID","MTS","AMOUNT","RATE_DAILY","PERIOD"]
[367950679,1750974640653,-460.0,0.00021643,2]
[367950680,1750974640662,-460.0,0.00021643,2]
[367950682,1750974640671,-552.74,0.00021643,2]
[367950684,1750974640681,-1610.64,0.00021643,2]
[367950686,1750974640690,-2242.71,0.00021643,2]
[367950687,1750974640699,-460.0,0.00021643,2]
[367950689,1750974640708,-497.1,0.00021643,2]
[367950691,1750974640717,-1619.94,0.00021643,2]
[367950692,1750974640726,-460.0,0.00021643,2]
[367950694,1750974640736,-460.0,0.00021643,2]
[367950696,1750974640745,-460.0,0.00021643,2]
[367950698,1750974640755,-460.0,0.00021643,2]
[367950700,1750974640764,-460.0,0.00021643,2]
[367950701,1750974640774,-888.01,0.00021643,2]
[367950703,1750974640783,-608.72,0.00021643,2]
[367950705,1750974640792,-460.0,0.00021643,2]
[367950707,1750974640801,-460.0,0.00021643,2]
[367950708,1750974640809,-460.0,0.00021643,2]
[367950710,1750974640818,-460.0,0.00021643,2]
[367950712,1750974640827,-460.0,0.00021643,2]
[367950713,1750974640836,-460.0,0.00021643,2]
[367950715,1750974640845,-460.0,0.00021643,2]
[367950717,1750974640854,-460.0,0.00021643,2]
[367950719,1750974640863,-512.88059439,0.00021643,2]
[367950721,1750974640872,-460.0,0.00021643,2]
[367950722,1750974640882,-366.70889909,0.00021643,2]
[367950724,1750974640892,-460.0,0.00021643,2]
[367950726,1750974640901,-460.0,0.00021643,2]
[367950728,1750974640911,-5761.77,0.00021643,2]
[367950729,1750974640920,-460.0,0.00021643,2]
[367950731,1750974640931,-559.79,0.00021643,2]
[367950733,1750974640940,-981.46,0.00021643,2]
[367950735,1750974640949,-460.0,0.00021643,2]
[367950737,1750974640965,-3545.39,0.00021643,2]
[367950739,1750974640975,-460.0,0.00021643,2]
[367950740,1750974640984,-460.0,0.00021643,2]
[367950742,1750974640993,-460.0,0.00021643,2]
[367950744,1750974641003,-460.0,0.00021643,2]
[367950746,1750974641016,-151.0,0.00021643,2]
[367950748,1750974641025,-460.0,0.00021643,2]
[367950750,1750974641035,-722.72,0.00021643,2]
[367950751,1750974641044,-752.81,0.00021643,2]
[367950753,1750974641055,-460.0,0.00021643,2]
[367950755,1750974641064,-460.0,0.00021643,2]
[367950757,1750974641074,-460.0,0.00021643,2]
[367950759,1750974641086,-460.0,0.00021643,2]
[367950760,1750974641096,-460.0,0.00021643,2]
[367950762,1750974641105,-460.0,0.00021643,2]
[367950764,1750974641115,-460.0,0.00021643,2]
[367950766,1750974641124,-999.52,0.00021643,2]
[367950768,1750974641133,-793.52,0.00021643,2]
[367950769,1750974641142,-460.0,0.00021643,2]
[367950771,1750974641152,-228.99502971,0.00021643,2]
[367950773,1750974641162,-460.0,0.00021643,2]
[367950775,1750974641172,-460.0,0.00021643,2]
[367950776,1750974641181,-460.32334548,0.00021643,2]
[367950778,1750974641190,-430.0,0.00021643,2]
[367950780,1750974641200,-460.0,0.00021643,2]
[367950782,1750974641209,-460.0,0.00021643,2]
[367950784,1750974641219,-472.54,0.00021643,2]
[367950786,1750974641230,-460.0,0.00021643,2]
[367950787,1750974641239,-460.0,0.00021643,2]
[367950789,1750974641249,-460.0,0.00021643,2]
[367950791,1750974641259,-460.0,0.00021643,2]
[367950793,1750974641269,-547.91,0.00021643,2]
[367950795,1750974641278,-460.0,0.00021643,2]
[367950796,1750974641287,-460.0,0.00021643,2]
[367950798,1750974641296,-842.36,0.00021643,2]
[367950800,1750974641306,-460.0,0.00021643,2]
[367950802,1750974641315,-460.0,0.00021643,2]
[367950803,1750974641324,-460.0,0.00021643,2]
[367950805,1750974641333,-1374.06,0.00021643,2]
[367950807,1750974641342,-460.0,0.00021643,2]
[367950809,1750974641351,-460.0,0.00021643,2]
[367950810,1750974641360,-579.75155842,0.00021643,2]
[367950812,1750974641369,-961.59,0.00021643,2]
[367950814,1750974641378,-785.15,0.00021643,2]
[367950816,1750974641387,-479.8950424,0.00021643,2]
[367950818,1750974641396,-460.0,0.00021643,2]
[367950819,1750974641406,-460.0,0.00021643,2]
[367950821,1750974641415,-460.0,0.00021643,2]
[367950823,1750974641424,-460.0,0.00021643,2]
[367950825,1750974641435,-648.42,0.00021643,2]
[367950827,1750974641444,-460.0,0.00021643,2]
[367950828,1750974641453,-460.0,0.00021643,2]
[367950830,1750974641462,-460.0,0.00021643,2]
[367950832,1750974641471,-460.0,0.00021643,2]
[367950834,1750974641480,-474.07,0.00021643,2]
[367950836,1750974641489,-460.0,0.00021643,2]
[367950837,1750974641499,-460.0,0.00021643,2]
[367950839,1750974641507,-2334.46,0.00021643,2]
[367950841,1750974641517,-460.0,0.00021643,2]
[367950843,1750974641526,-460.0,0.00021643,2]
[367950844,1750974641536,-460.0,0.00021643,2]
[367950846,1750974641545,-460.0,0.00021643,2]
[367950848,1750974641554,-460.0,0.00021643,2]
[367950850,1750974641564,-460.0,0.00021643,2]
[367950852,1750974641573,-461.03255266,0.00021643,2]
[367950853,1750974641582,-460.0,0.00021643,2]
[367950855,1750974641593,-460.0,0.00021643,2]
[367950857,1750974641604,-501.71,0.00021643,2]
[367950859,1750974641613,-500.0,0.00021643,2]
[367950861,1750974641622,-500.0,0.00021643,2]
[367950862,1750974641631,-1166.89,0.00021643,2]
[367950864,1750974641640,-500.0,0.00021643,2]
[367950866,1750974641649,-500.0,0.00021643,2]
[367950868,1750974641659,-500.0,0.00021643,2]
[367950869,1750974641667,-500.0,0.00021643,2]
[367950871,1750974641677,-500.0,0.00021643,2]
[367950873,1750974641687,-460.0,0.00021643,2]
[367950875,1750974641697,-460.83879382,0.00021643,2]
[367950877,1750974641706,-460.0,0.00021643,2]
[367950878,1750974641715,-460.0,0.00021643,2]
[367950880,1750974641725,-460.0,0.00021643,2]
[367950882,1750974641734,-1882.22,0.00021643,2]
[367950884,1750974641743,-500.0,0.00021673,2]
[367950886,1750974641753,-500.0,0.00021673,2]
[367950887,1750974641762,-500.0,0.00021673,2]
[367950889,1750974641772,-500.0,0.00021673,2]
[367950891,1750974641782,-500.0,0.00021673,2]
[367950893,1750974641792,-451.60165939,0.00021673,2]
[367950895,1750974641801,-500.0,0.00021673,2]
[367950897,1750974641810,-640.6587808,0.00021673,2]
[367950898,1750974641819,-500.0,0.00021673,2]
[367950900,1750974641828,-500.0,0.00021673,2]
[367950902,1750974641838,-500.0,0.00021673,2]
[367950904,1750974641847,-500.0,0.00021673,2]
[367950906,1750974641857,-353.80032943,0.00021673,2]
[367950907,1750974641866,-500.0,0.00021673,2]
[367950909,1750974641875,-500.0,0.00021673,2]
[367950911,1750974641885,-500.0,0.00021673,2]
[367950913,1750974641895,-500.0,0.00021673,2]
[367950915,1750974641904,-314.3743946,0.00021673,2]
[367950916,1750974641914,-500.0,0.00021673,2]
[367950918,1750974641923,-500.0,0.00021673,2]
[367950920,1750974641933,-159.2154015,0.000217,2]
[367950922,1750974641944,-575.0264769,0.000217,2]
[367950924,1750974641954,-159.2154015,0.000217,2]
[367950925,1750974641963,-575.0264769,0.000217,2]
[367950927,1750974641972,-159.2154015,0.000217,2]
[367950929,1750974641982,-575.0264769,0.000217,2]
[367950931,1750974641991,-1846.2,0.00021768,2]
[367950933,1750974642001,-3541.0,0.00021769,2]
[367950935,1750974642013,-200.0,0.0002182,4]
[367950936,1750974642021,-317.0,0.00021824,2]
[367950938,1750974642031,-317.0,0.00021824,2]
[367950940,1750974642041,-317.0,0.00021824,2]
[367950942,1750974642050,-317.0,0.00021824,2]
[367950959,1750974642193,-317.0,0.00021824,2]
[367950962,1750974642222,-317.0,0.00021824,2]
[367950964,1750974642231,-317.0,0.00021824,2]
[367950965,1750974642240,-317.0,0.00021824,2]
[367950966,1750974642250,-317.0,0.00021824,2]
[367950967,1750974642259,-420.9365825,0.00021824,2]
[367950968,1750974642268,-1871.010829,0.0002186,5]
[367950969,1750974642277,-1846.2,0.00021879,2]
[367950970,1750974642287,-1000.0,0.0002188,5]
[367950971,1750974642296,-654.0,0.0002189,2]
[367950972,1750974642306,-2256.12,0.000219,2]
[367950973,1750974642315,-158.984762,0.000219,2]
[367950974,1750974642324,-575.0264769,0.000219,2]
[367950975,1750974642333,-1151.4253324,0.000219,2]
[367950976,1750974642342,-1000.0,0.000219,5]
[367950977,1750974642351,-6764.50678833,0.000219,2]
[367950978,1750974642359,-591.75521589,0.000219,6]
[367950979,1750974642368,-1846.2,0.00021915,2]
[367950980,1750974642377,-1846.2,0.00021916,2]
[367950981,1750974642386,-1846.2,0.00021916,2]
[367950982,1750974642395,-1846.2,0.00021916,2]
[367950983,1750974642404,-1846.2,0.00021916,2]
[367950984,1750974642413,-1846.2,0.00021916,2]
[367950985,1750974642422,-1846.2,0.00021916,2]
[367950986,1750974642431,-1846.2,0.00021916,2]
[367950987,1750974642440,-1846.2,0.00021916,2]
[367950988,1750974642449,-1846.42618838,0.00021916,2]
[367950989,1750974642459,-460.0,0.00021917,2]
[367950991,1750974642468,-437.8491313,0.00021917,2]
[367950992,1750974642477,-460.0,0.00021917,2]
[367950993,1750974642486,-460.0,0.00021917,2]
[367950994,1750974642495,-460.0,0.00021917,2]
[367950995,1750974642504,-519.16,0.00021917,2]
[367950996,1750974642513,-460.0,0.00021917,2]
[367950997,1750974642522,-333.57905693,0.00021917,2]
[367950998,1750974642530,-460.0,0.00021917,2]
[367950999,1750974642539,-460.0,0.00021917,2]
[367951001,1750974642549,-460.0,0.00021917,2]
[367951002,1750974642558,-157.73218912,0.00021917,2]
[367951003,1750974642567,-441.28812256,0.00021917,2]
[367951004,1750974642576,-460.0,0.00021917,2]
[367951005,1750974642585,-460.0,0.00021917,2]
[367951007,1750974642594,-460.0,0.00021917,2]
[367951008,1750974642603,-460.0,0.00021917,2]
[367951009,1750974642612,-305.94169269,0.00021917,2]
[367951011,1750974642621,-460.0,0.00021917,2]
[367951012,1750974642630,-403.58674974,0.00021917,2]
[367951013,1750974642639,-460.0,0.00021917,2]
[367951015,1750974642649,-460.0,0.00021917,2]
[367951017,1750974642658,-460.0,0.00021917,2]
[367951019,1750974642667,-460.0,0.00021917,2]
[367951021,1750974642676,-460.0,0.00021917,2]
[367951023,1750974642686,-465.12424,0.00021917,2]
[367951025,1750974642695,-235.9965194,0.00021917,2]
[367951027,1750974642703,-460.0,0.00021917,2]
[367951029,1750974642712,-460.0,0.00021917,2]
[367951031,1750974642721,-460.0,0.00021917,2]
[367951033,1750974642730,-460.0,0.00021917,2]
[367951035,1750974642739,-460.0,0.00021917,2]
[367951037,1750974642749,-460.0,0.00021917,2]
[367951039,1750974642759,-333.33982744,0.00021917,2]
[367951041,1750974642768,-460.0,0.00021917,2]
[367951043,1750974642777,-460.0,0.00021917,2]
[367951045,1750974642787,-460.0,0.00021917,2]
[367951047,1750974642796,-460.0,0.00021917,2]
[367951049,1750974642805,-460.0,0.00021917,2]
[367951051,1750974642814,-460.0,0.00021917,2]
[367951053,1750974642824,-460.0,0.00021917,2]
[367951055,1750974642833,-460.0,0.00021917,2]
[367951057,1750974642842,-460.0,0.00021917,2]
[367951059,1750974642851,-460.0,0.00021917,2]
[367951061,1750974642860,-460.0,0.00021917,2]
[367951063,1750974642869,-364.88186531,0.00021917,2]
[367951065,1750974642879,-460.0,0.00021917,2]
[367951067,1750974642888,-460.0,0.00021917,2]
[367951069,1750974642897,-460.0,0.00021917,2]
[367951071,1750974642907,-601.94850018,0.00021917,2]
[367951073,1750974642916,-460.0,0.00021917,2]
[367951075,1750974642925,-372.74742083,0.00021917,2]
[367951077,1750974642935,-460.0,0.00021917,2]
[367951079,1750974642944,-460.0,0.00021917,2]
[367951081,1750974642953,-645.96,0.00021917,2]
[367951083,1750974642963,-460.0,0.00021917,2]
[367951085,1750974642972,-402.56191319,0.00021917,2]
[367951087,1750974642981,-770.65,0.00021917,2]
[367951089,1750974642990,-1206.29,0.00021917,2]
[367951091,1750974643002,-460.0,0.00021917,2]
[367951093,1750974643016,-460.0,0.00021917,2]
[367951095,1750974643026,-460.0,0.00021917,2]
[367951097,1750974643036,-431.58983597,0.00021917,2]
[367951099,1750974643045,-460.0,0.00021917,2]
[367951102,1750974643055,-460.0,0.00021917,2]
[367951104,1750974643064,-460.0,0.00021917,2]
[367951106,1750974643074,-460.0,0.00021917,2]
[367951108,1750974643083,-460.0,0.00021917,2]
[367951110,1750974643092,-460.0,0.00021917,2]
[367951112,1750974643102,-460.0,0.00021917,2]
[367951113,1750974643111,-390.0,0.00021917,2]
[367951114,1750974643120,-460.0,0.00021917,2]
[367951115,1750974643129,-460.0,0.00021917,2]
[367951117,1750974643138,-460.0,0.00021917,2]
[367951119,1750974643148,-460.0,0.00021917,2]
[367951121,1750974643157,-460.0,0.00021917,2]
[367951123,1750974643166,-460.0,0.00021917,2]
[367951125,1750974643175,-460.0,0.00021917,2]
[367951127,1750974643186,-502.07,0.00021917,2]
[367951129,1750974643195,-462.09959667,0.00021917,2]
[367951131,1750974643204,-460.0,0.00021917,2]
[367951133,1750974643214,-460.0,0.00021917,2]
[367951135,1750974643223,-460.0,0.00021917,2]
[367951137,1750974643232,-460.0,0.00021917,2]
[367951139,1750974643242,-460.0,0.00021917,2]
[367951141,1750974643251,-460.0,0.00021917,2]
[367951143,1750974643261,-395.57311899,0.00021917,2]
[367951145,1750974643271,-460.0,0.00021917,2]
[367951147,1750974643280,-460.0,0.00021917,2]
[367951149,1750974643289,-460.0,0.00021917,2]
[367951151,1750974643299,-460.0,0.00021917,2]
[367951153,1750974643308,-460.0,0.00021917,2]
[367951155,1750974643317,-560.57,0.00021917,2]
[367951157,1750974643327,-460.0,0.00021917,2]
[367951159,1750974643336,-460.0,0.00021917,2]
[367951161,1750974643345,-460.0,0.00021917,2]
[367951163,1750974643355,-460.0,0.00021917,2]
[367951165,1750974643365,-643.3,0.00021917,2]
[367951167,1750974643374,-460.0,0.00021917,2]
[367951169,1750974643384,-488.65228825,0.00021917,2]
[367951171,1750974643393,-539.02,0.00021917,2]
[367951173,1750974643403,-460.0,0.00021917,2]
[367951175,1750974643413,-460.0,0.00021917,2]
[367951177,1750974643422,-460.0,0.00021917,2]
[367951179,1750974643433,-460.0,0.00021917,2]
[367951181,1750974643442,-460.0,0.00021917,2]
[367951183,1750974643452,-460.0,0.00021917,2]
[367951185,1750974643462,-460.0,0.00021917,2]
[367951187,1750974643472,-460.0,0.00021917,2]
[367951188,1750974643481,-460.0,0.00021917,2]
[367951190,1750974643490,-460.0,0.00021917,2]
[367951192,1750974643500,-460.0,0.00021917,2]
[367951194,1750974643509,-460.0,0.00021917,2]
[367951195,1750974643519,-460.0,0.00021917,2]
[367951196,1750974643528,-500.0,0.00021917,2]
[367951197,1750974643537,-901.78,0.00021917,2]
[367951198,1750974643546,-460.0,0.00021917,2]
[367951199,1750974643556,-383.91248654,0.00021917,2]
[367951201,1750974643565,-460.0,0.00021917,2]
[367951203,1750974643575,-460.0,0.00021917,2]
[367951205,1750974643585,-460.0,0.00021917,2]
[367951207,1750974643594,-774.18,0.00021917,2]
[367951209,1750974643603,-340.97,0.00021917,2]
[367951211,1750974643612,-460.0,0.00021917,2]
[367951213,1750974643622,-514.19,0.00021917,2]
[367951215,1750974643631,-337.24719096,0.00021917,2]
[367951217,1750974643640,-460.0,0.00021917,2]
[367951219,1750974643649,-460.0,0.00021917,2]
[367951221,1750974643659,-460.0,0.00021917,2]
[367951223,1750974643668,-460.0,0.00021917,2]
[367951225,1750974643677,-460.0,0.00021917,2]
[367951227,1750974643688,-697.53,0.00021917,2]
[367951229,1750974643697,-460.0,0.00021917,2]
[367951231,1750974643706,-425.27777638,0.00021917,2]
[367951233,1750974643716,-460.0,0.00021917,2]
[367951235,1750974643725,-460.0,0.00021917,2]
[367951237,1750974643734,-151.0,0.00021917,2]
[367951239,1750974643744,-460.0,0.00021917,2]
[367951241,1750974643753,-500.0,0.00021917,2]
[367951243,1750974643762,-500.0,0.00021917,2]
[367951245,1750974643771,-460.0,0.00021917,2]
[367951247,1750974643780,-522.22415435,0.00021917,2]
[367951249,1750974643789,-460.0,0.00021917,2]
[367951251,1750974643799,-701.8,0.00021917,2]
[367951252,1750974643810,-460.0,0.00021917,2]
[367951255,1750974643819,-460.0,0.00021917,2]
[367951256,1750974643828,-151.0,0.00021917,2]
[367951258,1750974643838,-460.0,0.00021917,2]
[367951261,1750974643847,-460.0,0.00021917,2]
[367951262,1750974643856,-460.31664621,0.00021917,2]
[367951265,1750974643866,-460.0,0.00021917,2]
[367951267,1750974643875,-460.0,0.00021917,2]
[367951268,1750974643885,-460.0,0.00021917,2]
[367951270,1750974643894,-460.0,0.00021917,2]
[367951272,1750974643904,-151.75220177,0.00021917,2]
[367951274,1750974643914,-453.16372166,0.00021917,2]
[367951276,1750974643923,-460.0,0.00021917,2]
[367951278,1750974643932,-460.0,0.00021917,2]
[367951280,1750974643941,-460.0,0.00021917,2]
[367951282,1750974643951,-566.33596718,0.00021917,2]
[367951284,1750974643960,-540.65449836,0.00021917,2]
[367951286,1750974643969,-460.0,0.00021917,2]
[367951288,1750974643978,-460.0,0.00021917,2]
[367951290,1750974643987,-385.09385702,0.00021917,2]
[367951292,1750974643997,-463.2347657,0.00021917,2]
[367951294,1750974644008,-151.0,0.00021917,2]
[367951296,1750974644018,-619.46,0.00021917,2]
[367951298,1750974644027,-460.0,0.00021917,2]
[367951300,1750974644037,-151.0,0.00021917,2]
[367951303,1750974644046,-4003.25,0.00021917,2]
[367951305,1750974644056,-460.0,0.00021917,2]
[367951307,1750974644067,-1072.48,0.00021917,2]
[367951308,1750974644076,-460.0,0.00021917,2]
[367951310,1750974644087,-460.0,0.00021917,2]
[367951312,1750974644096,-209.4362204,0.00021917,2]
[367951314,1750974644106,-460.0,0.00021917,2]
[367951316,1750974644115,-460.0,0.00021917,2]
[367951318,1750974644125,-460.0,0.00021917,2]
[367951320,1750974644134,-447.36223661,0.00021917,2]
[367951322,1750974644143,-460.0,0.00021917,2]
[367951324,1750974644152,-460.0,0.00021917,2]
[367951326,1750974644162,-460.0,0.00021917,2]
[367951328,1750974644174,-460.0,0.00021917,2]
[367951330,1750974644184,-500.0,0.00021917,2]
[367951332,1750974644194,-151.0,0.00021917,2]
[367951334,1750974644204,-460.0,0.00021917,2]
[367951336,1750974644214,-460.0,0.00021917,2]
[367951338,1750974644223,-894.83,0.00021917,2]
[367951340,1750974644233,-460.0,0.00021917,2]
[367951343,1750974644252,-911.95,0.00021917,2]
[367951345,1750974644264,-463.41204926,0.00021917,2]
[367951348,1750974644274,-460.0,0.00021917,2]
[367951349,1750974644283,-460.0,0.00021917,2]
[367951352,1750974644293,-151.0,0.00021917,2]
[367951354,1750974644302,-460.0,0.00021917,2]
[367951356,1750974644312,-1623.73,0.00021917,2]
[367951358,1750974644322,-460.0,0.00021917,2]
[367951360,1750974644332,-460.0,0.00021917,2]
[367951362,1750974644342,-151.0,0.00021917,2]
[367951364,1750974644352,-460.0,0.00021917,2]
[367951366,1750974644362,-460.0,0.00021917,2]
[367951368,1750974644372,-460.0,0.00021917,2]
[367951370,1750974644381,-460.0,0.00021917,2]
[367951372,1750974644391,-460.0,0.00021917,2]
[367951374,1750974644400,-463.44550028,0.00021917,2]
[367951376,1750974644409,-460.0,0.00021917,2]
[367951378,1750974644419,-460.0,0.00021917,2]
[367951380,1750974644429,-460.0,0.00021917,2]
[367951382,1750974644439,-460.0,0.00021917,2]
[367951384,1750974644449,-3101.31,0.00021917,2]
[367951386,1750974644459,-460.0,0.00021917,2]
[367951388,1750974644468,-460.0,0.00021917,2]
[367951390,1750974644477,-460.0,0.00021917,2]
[367951392,1750974644487,-735.7,0.00021917,2]
[367951394,1750974644496,-460.0,0.00021917,2]
[367951396,1750974644506,-610.22,0.00021917,2]
[367951398,1750974644515,-460.0,0.00021917,2]
[367951401,1750974644525,-489.52223856,0.00021917,2]
[367951403,1750974644534,-460.0,0.00021917,2]
[367951404,1750974644544,-908.21,0.00021917,2]
[367951407,1750974644554,-490.39937732,0.00021917,2]
[367951409,1750974644563,-737.95,0.00021917,2]
[367951411,1750974644573,-1309.44,0.00021917,2]
[367951413,1750974644583,-460.0,0.00021917,2]
[367951415,1750974644592,-3583.96,0.00021917,2]
[367951417,1750974644601,-460.0,0.00021917,2]
[367951419,1750974644610,-532.21,0.00021917,2]
[367951421,1750974644619,-460.0,0.00021917,2]
[367951423,1750974644628,-460.0,0.00021917,2]
[367951425,1750974644638,-460.0,0.00021917,2]
[367951427,1750974644647,-460.0,0.00021917,2]
[367951429,1750974644656,-460.0,0.00021917,2]
[367951431,1750974644666,-460.0,0.00021917,2]
[367951433,1750974644676,-151.0,0.00021917,2]
[367951435,1750974644686,-460.0,0.00021917,2]
[367951437,1750974644695,-460.0,0.00021917,2]
[367951439,1750974644705,-460.0,0.00021917,2]
[367951441,1750974644714,-1896.13,0.00021917,2]
[367951443,1750974644723,-460.0,0.00021917,2]
[367951445,1750974644733,-460.0,0.00021917,2]
[367951447,1750974644743,-460.0,0.00021917,2]
[367951449,1750974644752,-460.0,0.00021917,2]
[367951451,1750974644762,-1037.22,0.00021917,2]
[367951453,1750974644771,-1201.95,0.00021917,2]
[367951455,1750974644781,-461.33785418,0.00021917,2]
[367951457,1750974644790,-460.0,0.00021917,2]
[367951459,1750974644800,-818.25,0.00021917,2]
[367951461,1750974644809,-460.0,0.00021917,2]
[367951463,1750974644818,-460.0,0.00021917,2]
[367951464,1750974644827,-460.0,0.00021917,2]
[367951467,1750974644837,-460.0,0.00021917,2]
[367951469,1750974644847,-460.0,0.00021917,2]
[367951471,1750974644856,-460.0,0.00021917,2]
[367951473,1750974644865,-460.0,0.00021917,2]
[367951475,1750974644874,-460.0,0.00021917,2]
[367951477,1750974644884,-460.0,0.00021917,2]
[367951478,1750974644897,-460.0,0.00021917,2]
[367951480,1750974644907,-460.0,0.00021917,2]
[367951483,1750974644916,-528.49,0.00021917,2]
[367951485,1750974644925,-460.0,0.00021917,2]
[367951486,1750974644936,-639.85,0.00021917,2]
[367951489,1750974644946,-565.97,0.00021917,2]
[367951490,1750974644955,-460.0,0.00021917,2]
[367951492,1750974644964,-460.0,0.00021917,2]
[367951494,1750974644973,-460.0,0.00021917,2]
[367951497,1750974644983,-460.0,0.00021917,2]
[367951498,1750974644992,-460.76791442,0.00021917,2]
[367951500,1750974645002,-460.0,0.00021917,2]
[367951502,1750974645015,-460.0,0.00021917,2]
[367951504,1750974645024,-460.0,0.00021917,2]
[367951506,1750974645034,-460.0,0.00021917,2]
[367951508,1750974645044,-748.98,0.00021917,2]
[367951511,1750974645053,-2296.21,0.00021917,2]
[367951513,1750974645064,-460.0,0.00021917,2]
[367951514,1750974645073,-460.0,0.00021917,2]
[367951516,1750974645082,-664.21,0.00021917,2]
[367951519,1750974645092,-485.81,0.00021917,2]
[367951520,1750974645101,-460.0,0.00021917,2]
[367951522,1750974645110,-755.41,0.00021917,2]
[367951524,1750974645120,-1035.66,0.00021917,2]
[367951526,1750974645129,-460.0,0.00021917,2]
[367951529,1750974645139,-2446.83,0.00021917,2]
[367951530,1750974645149,-460.0,0.00021917,2]
[367951532,1750974645158,-460.0,0.00021917,2]
[367951534,1750974645168,-648.79,0.00021917,2]
[367951537,1750974645177,-460.0,0.00021917,2]
[367951539,1750974645188,-522.85,0.00021917,2]
[367951541,1750974645197,-151.0,0.00021917,2]
[367951543,1750974645207,-460.0,0.00021917,2]
[367951545,1750974645217,-430.0,0.00021917,2]
[367951546,1750974645226,-460.0,0.00021917,2]
[367951548,1750974645235,-460.0,0.00021917,2]
[367951550,1750974645244,-524.92,0.00021917,2]
[367951552,1750974645254,-460.0,0.00021917,2]
[367951554,1750974645263,-151.0,0.00021917,2]
[367951556,1750974645272,-460.0,0.00021917,2]
[367951579,1750974645468,-386.846006,0.00021917,2]
[367951582,1750974645478,-460.0,0.00021917,2]
[367951584,1750974645488,-763.26,0.00021917,2]
[367951586,1750974645497,-3669.24,0.00021917,2]
[367951588,1750974645507,-386.846006,0.00021917,2]
[367951590,1750974645516,-714.14,0.00021917,2]
[367951592,1750974645526,-460.0,0.00021917,2]
[367951594,1750974645535,-1499.35,0.00021917,2]
[367951597,1750974645544,-460.0,0.00021917,2]
[367951599,1750974645554,-460.0,0.00021917,2]
[367951602,1750974645563,-460.0,0.00021917,2]
[367951604,1750974645572,-224.74916,0.00021917,2]
[367951606,1750974645582,-460.0,0.00021917,2]
[367951608,1750974645591,-460.0,0.00021917,2]
[367951610,1750974645600,-460.0,0.00021917,2]
[367951612,1750974645609,-460.0,0.00021917,2]
[367951614,1750974645619,-460.0,0.00021917,2]
[367951616,1750974645628,-589.38515784,0.00021917,2]
[367951618,1750974645637,-722.48,0.00021917,2]
[367951620,1750974645647,-460.0,0.00021917,2]
[367951622,1750974645656,-619.47,0.00021917,2]
[367951624,1750974645665,-152.711265,0.00021917,2]
[367951626,1750974645675,-859.74,0.00021917,2]
[367951628,1750974645685,-623.34,0.00021917,2]
[367951630,1750974645695,-460.0,0.00021917,2]
[367951632,1750974645704,-460.0,0.00021917,2]
[367951634,1750974645713,-460.0,0.00021917,2]
[367951635,1750974645722,-483.07,0.00021917,2]
[367951636,1750974645731,-460.0,0.00021917,2]